fUST/lending_fUST_20251023
["ID","MTS","AMOUNT","RATE_DAILY","PERIOD"]
[392139495,1761204641553,-460.0,0.00027561,2]
[392139496,1761204641562,-450.0,0.00027616,5]
[392139497,1761204641571,-7184.4667862,0.00027655,2]
[392139498,1761204641582,-1135.99647781,0.00027702,2]
[392139499,1761204641591,-858.31080678,0.00027712,5]
[392139500,1761204641603,-1508.67918338,0.00027712,5]
[392139501,1761204641612,-3000.0,0.00027712,5]
[392139502,1761204641622,-2773.63247649,0.00027712,5]
[392139503,1761204641632,-3000.0,0.00027712,5]
[392139504,1761204641641,-2549.71142621,0.00027712,5]
[392139505,1761204641650,-327.98039608,0.00027721,5]
[392139506,1761204641660,-1000.0,0.00027721,5]
[392139507,1761204641670,-1000.0,0.00027721,5]
[392139508,1761204641680,-1000.0,0.00027721,5]
[392139509,1761204641689,-500.0,0.00027729,2]
[392139510,1761204641700,-4616.45621852,0.00027741,2]
[392139511,1761204641709,-1502.88994788,0.00027764,5]
[392139512,1761204641718,-504.26110759,0.00027764,5]
[392139513,1761204641727,-500.0,0.00027764,5]
[392139514,1761204641736,-1502.01981445,0.00027764,5]
[392139515,1761204641746,-2500.0,0.00027764,5]
[392139516,1761204641755,-2503.29632497,0.00027764,5]
[392139517,1761204641765,-500.0,0.00027764,5]
[392139518,1761204641774,-501.47838452,0.00027945,5]
[392139519,1761204641783,-500.0,0.00028003,2]
[392139520,1761204641792,-280.0,0.00028109,2]
[392139521,1761204641801,-347.39474393,0.00028142,2]
[392139522,1761204641816,-252.1668955,0.00028164,5]
[392139523,1761204641825,-1135.99647781,0.00028258,2]
[392139524,1761204641835,-1335.9880288,0.0002826,5]
[392139525,1761204641845,-3500.0,0.0002826,5]
[392139526,1761204641855,-1500.0,0.00028268,5]
[392139527,1761204641864,-1500.0,0.00028268,5]
[392139528,1761204641873,-716.98232335,0.00028268,5]
[392139529,1761204641883,-500.0,0.00028277,2]
[392139530,1761204641892,-3000.0,0.00028312,5]
[392139531,1761204641902,-158.0,0.00028382,2]
[392139532,1761204641912,-587.0,0.00028382,2]
[392139533,1761204641922,-587.0,0.00028382,2]
[392139534,1761204641931,-403.0,0.00028382,2]
[392139535,1761204641941,-4616.45621852,0.00028503,2]
[392139536,1761204641950,-500.0,0.00028551,2]
[392139537,1761204641959,-1000.0,0.000286,2]
[392139538,1761204641968,-1000.0,0.000286,2]
[392139539,1761204641979,-27641.75,0.000286,7]
[392139540,1761204641988,-2351.0,0.00028642,2]
[392139541,1761204641998,-1714.0,0.00028808,5]
[392139542,1761204642007,-2003.97828237,0.00028816,5]
[392139543,1761204642017,-1949.41758538,0.00028816,5]
[392139544,1761204642027,-213.87913356,0.00028825,2]
[392139545,1761204642036,-3500.0,0.0002886,5]
[392139546,1761204642046,-151.0,0.000289,15]
[392139547,1761204642055,-165.06,0.00028995,21]
[392139548,1761204642065,-179.11628829,0.00028995,21]
[392139549,1761204642074,-362.68539967,0.0002905,2]
[392139550,1761204642083,-1135.99647781,0.0002909,2]
[392139551,1761204642092,-150.0,0.00029173,5]
[392139552,1761204642102,-4616.45621852,0.00029264,2]
[392139553,1761204642111,-300.0,0.000293,13]
[392139554,1761204642120,-300.0,0.000293,13]
[392139555,1761204642130,-300.0,0.000293,13]
[392139556,1761204642139,-1135.99647781,0.00029301,2]
[392139557,1761204642148,-1135.99647781,0.00029302,2]
[392139558,1761204642157,-2351.0,0.00029308,2]
[392139559,1761204642167,-1136.34,0.00029311,2]
[392139560,1761204642176,-1136.34,0.00029311,2]
[392139561,1761204642186,-1136.34,0.00029311,2]
[392139562,1761204642195,-1136.34,0.00029311,2]
[392139563,1761204642204,-1136.34,0.00029311,2]
[392139564,1761204642213,-1136.34,0.00029311,2]
[392139565,1761204642223,-1136.34,0.00029311,2]
[392139566,1761204642233,-1136.34,0.00029311,2]
[392139567,1761204642243,-1136.34,0.00029311,2]
[392139568,1761204642252,-1136.34,0.00029311,2]
[392139569,1761204642261,-1136.34,0.00029311,2]
[392139570,1761204642270,-1136.34,0.00029311,2]
[392139571,1761204642279,-1136.34,0.00029311,2]
[392139572,1761204642288,-1136.34,0.00029311,2]
[392139573,1761204642296,-1136.34,0.00029311,2]
[392139574,1761204642305,-1136.34,0.00029311,2]
[392139575,1761204642314,-1136.34,0.00029311,2]
[392139576,1761204642324,-1136.34,0.00029311,2]
[392139577,1761204642333,-1136.34,0.00029311,2]
[392139578,1761204642343,-1136.34,0.00029311,2]
[392139579,1761204642353,-1136.34,0.00029311,2]
[392139580,1761204642363,-1136.34,0.00029311,2]
[392139581,1761204642373,-1136.34,0.00029311,2]
[392139582,1761204642383,-1136.5073638,0.00029311,2]
[392139583,1761204642393,-500.0,0.00029311,7]
[392139584,1761204642402,-500.0,0.00029311,7]
[392139585,1761204642490,-500.0,0.00029311,7]
[392139586,1761204642501,-500.0,0.00029311,7]
[392139587,1761204642511,-500.0,0.00029311,7]
[392139588,1761204642521,-500.0,0.00029311,7]
[392139589,1761204642532,-500.0,0.00029311,7]
[392139590,1761204642542,-500.0,0.00029311,7]
[392139591,1761204642552,-500.0,0.00029311,7]
[392139592,1761204642562,-500.0,0.00029311,7]
[392139593,1761204642571,-500.0,0.00029311,7]
[392139594,1761204642580,-500.0,0.00029311,7]
[392139595,1761204642590,-500.0,0.00029311,7]
[392139596,1761204642600,-500.0,0.00029311,7]
[392139597,1761204642610,-500.0,0.00029311,7]
[392139598,1761204642619,-500.0,0.00029311,7]
[392139599,1761204642628,-500.0,0.00029311,7]
[392139600,1761204642637,-500.0,0.00029311,7]
[392139601,1761204642647,-500.0,0.00029311,7]
[392139602,1761204642656,-214.3374491,0.00029311,7]
[392139603,1761204642665,-7951.97534467,0.00029312,2]
[392139604,1761204642675,-11480.14035825,0.00029321,2]
[392139605,1761204642684,-274758.27667335,0.00029322,2]
[392139616,1761204643687,-95241.72332665,0.00029322,2]
[392139617,1761204643697,-191.50882481,0.00029373,5]
[392139618,1761204643705,-500.0,0.00029373,5]
[392139619,1761204643716,-502.30177107,0.00029373,5]
[392139620,1761204643725,-500.0,0.00029373,5]
[392139621,1761204643735,-500.0,0.00029373,5]
[392139622,1761204643744,-501.56700899,0.00029373,5]
[392139623,1761204643754,-502.33718464,0.00029373,5]
[392139624,1761204643763,-215.3769625,0.00029373,5]
[392139625,1761204643773,-500.0,0.00029373,5]
[392139626,1761204643782,-500.0,0.00029373,5]
[392139627,1761204643791,-500.0,0.00029373,5]
[392139628,1761204643802,-200.0,0.00029373,5]
[392139629,1761204643816,-2021.56435318,0.0002939,5]
[392139630,1761204643826,-2057.55,0.000294,2]
[392139631,1761204643835,-3379.573712,0.000294,2]
[392139632,1761204643846,-272.878544,0.000294,2]
[392139633,1761204643855,-224.217099,0.000294,2]
[392139634,1761204643863,-403.24192968,0.000294,7]
[392139635,1761204643873,-4000.0,0.00029408,5]
[392139636,1761204643883,-150.0,0.0002942,2]
[392139637,1761204643893,-150.0,0.0002942,2]
[392139638,1761204643903,-199.0,0.0002942,7]
[392139639,1761204643912,-500.0,0.0002942,7]
[392139640,1761204643922,-500.0,0.0002942,7]
[392139641,1761204643931,-500.0,0.0002942,7]
[392139642,1761204643941,-500.0,0.0002942,7]
[392139643,1761204643951,-522.28381523,0.0002942,7]
[392139644,1761204643960,-150.0,0.00029421,2]
[392139645,1761204643970,-150.0,0.00029421,2]
[392139646,1761204643979,-150.0,0.00029421,2]
[392139647,1761204643989,-150.0,0.00029421,2]
[392139648,1761204643999,-150.0,0.00029421,2]
[392139649,1761204644008,-150.0,0.00029421,2]
[392139650,1761204644018,-150.0,0.00029421,2]
[392139651,1761204644028,-150.0,0.00029421,2]
[392139652,1761204644037,-150.0,0.00029421,2]
[392139653,1761204644047,-150.0,0.00029421,2]
[392139654,1761204644057,-150.0,0.00029421,2]
[392139655,1761204644067,-150.0,0.00029421,2]
[392139656,1761204644076,-150.0,0.00029421,2]
[392139657,1761204644086,-150.0,0.00029421,2]
[392139658,1761204644096,-150.0,0.00029421,2]
[392139659,1761204644105,-500.0,0.00029421,7]
[392139660,1761204644114,-500.0,0.00029421,7]
[392139661,1761204644124,-500.0,0.00029421,7]
[392139662,1761204644133,-500.0,0.00029421,7]
[392139663,1761204644143,-500.0,0.00029421,7]
[392139664,1761204644152,-500.0,0.00029421,7]
[392139665,1761204644162,-509.14138146,0.00029421,7]
[392139666,1761204644171,-500.0,0.00029421,7]
[392139667,1761204644181,-500.0,0.00029421,7]
[392139668,1761204644190,-500.0,0.00029421,7]
[392139669,1761204644200,-500.0,0.00029421,7]
[392139670,1761204644209,-500.0,0.00029421,7]
[392139671,1761204644218,-500.0,0.00029421,7]
[392139672,1761204644228,-500.0,0.00029421,7]
[392139673,1761204644237,-500.0,0.00029421,7]
[392139674,1761204644246,-500.0,0.00029421,7]
[392139675,1761204644255,-500.0,0.00029421,7]
[392139676,1761204644264,-500.0,0.00029421,7]
[392139677,1761204644274,-500.0,0.00029421,7]
[392139678,1761204644283,-500.0,0.00029421,7]
[392139679,1761204644292,-500.0,0.00029421,7]
[392139680,1761204644302,-500.0,0.00029421,7]
[392139681,1761204644311,-251.20703215,0.00029425,14]
[392139682,1761204644320,-150.0,0.00029431,2]
[392139683,1761204644330,-271.65175791,0.00029431,2]
[392139684,1761204644340,-500.0,0.00029431,7]
[392139685,1761204644350,-500.0,0.00029431,7]
[392139686,1761204644360,-168.78125966,0.00029431,7]
[392139687,1761204644370,-211.223357,0.00029475,2]
[392139688,1761204644379,-272.878544,0.00029475,2]
[392139689,1761204644388,-224.217099,0.00029475,2]
[392139690,1761204644397,-684.17,0.000295,7]
[392139691,1761204644406,-211.223357,0.0002955,2]
[392139692,1761204644416,-272.878544,0.0002955,2]
[392139693,1761204644425,-224.217099,0.0002955,2]
[392139694,1761204644434,-95000.0,0.0002956,2]
[392139695,1761204644443,-211.223357,0.00029625,2]
[392139696,1761204644452,-272.878544,0.00029625,2]
[392139697,1761204644461,-224.217099,0.00029625,2]
[392139698,1761204644471,-199.0,0.00029694,8]
[392139699,1761204644480,-211.223357,0.000297,2]
[392139700,1761204644490,-272.878544,0.000297,2]
[392139701,1761204644499,-224.217099,0.000297,2]
[392139702,1761204644509,-155.177066,0.000297,2]
[392139703,1761204644519,-300.0,0.00029721,5]
[392139704,1761204644528,-7184.4667862,0.000299,2]
[392139705,1761204644538,-600.0,0.00029907,30]
[392139706,1761204644548,-448.06854239,0.00029921,5]
[392139707,1761204644557,-1000.0,0.00029921,5]
[392139708,1761204644567,-1000.0,0.00029921,5]
[392139709,1761204644576,-1000.0,0.00029921,5]
[392139710,1761204644586,-1000.0,0.00029921,5]
[392139711,1761204644595,-2500.0,0.00029956,5]
[392139712,1761204644604,-210.21336246,0.00029968,9]
[392139713,1761204644614,-500.0,0.00029973,5]
[392139714,1761204644623,-500.0,0.00029973,2]
[392139715,1761204644632,-501.73203832,0.00029973,5]
[392139716,1761204644642,-500.0,0.00029973,5]
[392139717,1761204644651,-500.0,0.00029973,5]
[392139718,1761204644661,-500.0,0.00029973,5]
[392139719,1761204644670,-500.0,0.00029973,5]
[392139720,1761204644679,-500.0,0.00029973,5]
[392139721,1761204644688,-500.89163073,0.00029973,5]
[392139722,1761204644698,-500.0,0.00029973,5]
[392139723,1761204644707,-500.0,0.00029973,5]
[392139724,1761204644716,-411.03744154,0.00029973,5]
[392139725,1761204644726,-500.0,0.00029973,5]
[392139726,1761204644735,-500.0,0.00029973,5]
[392139727,1761204644744,-500.0,0.00029973,5]
[392139728,1761204644753,-500.0,0.00029973,5]
[392139729,1761204644763,-500.0,0.00029973,4]
[392139730,1761204644772,-3551.24838845,0.0003,2]
[392139731,1761204644782,-272.878544,0.0003,15]
[392139732,1761204644791,-224.217099,0.0003,15]
[392139733,1761204644801,-500000.0,0.0003,2]
[392139734,1761204644816,-117530.75204197,0.0003,15]
[392139735,1761204644919,-662980.90542738,0.0003,15]
[392139736,1761204644930,-217.735837,0.0003,30]
[392139737,1761204644940,-151.0,0.0003,30]
[392139738,1761204644950,-217.735837,0.0003,30]
[392139739,1761204644961,-217.735837,0.0003,30]
[392139740,1761204644971,-217.735837,0.0003,30]
[392139741,1761204644980,-151.0,0.0003,30]
[392139742,1761204644990,-151.0,0.0003,30]
[392139743,1761204645000,-151.0,0.0003,30]
[392139744,1761204645011,-151.0,0.0003,30]
[392139745,1761204645020,-151.0,0.0003,30]
[392139746,1761204645030,-151.0,0.0003,30]
[392139747,1761204645040,-1000.0,0.0003,4]
[392139748,1761204645049,-154.907856,0.0003,30]
[392139749,1761204645059,-151.0,0.0003,30]
[392139750,1761204645068,-151.0,0.0003,30]
[392139751,1761204645077,-151.0,0.0003,30]
[392139752,1761204645087,-265.895457,0.0003,30]
[392139753,1761204645096,-167.775372,0.0003,30]
[392139754,1761204645106,-167.775372,0.0003,30]
[392139755,1761204645115,-151.0,0.0003,30]
[392139756,1761204645124,-167.775372,0.0003,30]
[392139757,1761204645133,-152.136938,0.0003,30]
[392139758,1761204645142,-167.775372,0.0003,30]
[392139759,1761204645152,-151.0,0.0003,30]
[392139760,1761204645161,-151.0,0.0003,30]
[392139761,1761204645170,-151.0,0.0003,30]
[392139762,1761204645180,-1000.0,0.00030136,30]
[392139763,1761204645190,-393.37346004,0.00030142,2]
[392139764,1761204645199,-160.0,0.00030158,2]
[392139765,1761204645208,-403.24192968,0.00030158,2]
[392139766,1761204645218,-160.0,0.00030158,2]
[392139767,1761204645227,-450.0,0.00030268,5]
[392139768,1761204645236,-1000.0,0.0003041,31]
[392139769,1761204645246,-1500.0,0.00030468,5]
[392139770,1761204645255,-1096.85906917,0.00030468,5]
[392139771,1761204645265,-1500.0,0.00030468,5]
[392139772,1761204645273,-471.58432199,0.00030468,5]
[392139773,1761204645283,-505.63957444,0.00030521,5]
[392139774,1761204645293,-1000.0,0.00030521,2]
[392139775,1761204645303,-1000.0,0.00030521,5]
[392139776,1761204645313,-1000.0,0.00030521,5]
[392139777,1761204645322,-1000.0,0.00030521,5]
[392139778,1761204645331,-1000.0,0.00030521,5]
[392139779,1761204645341,-837.93959275,0.00030521,5]
[392139780,1761204645351,-428.12470712,0.00030521,5]
[392139781,1761204645361,-1000.0,0.00030521,5]
[392139782,1761204645370,-1000.0,0.00030521,5]
[392139783,1761204645379,-1000.0,0.00030521,5]
[392139784,1761204645389,-1000.0,0.00030521,5]
[392139785,1761204645398,-1000.0,0.00030521,5]
[392139786,1761204645408,-1000.0,0.00030521,4]
[392139787,1761204645417,-403.24192968,0.00030662,3]
[392139788,1761204645427,-1000.0,0.00030684,32]
[392139789,1761204645436,-160.0,0.00030692,2]
[392139790,1761204645446,-27641.75,0.000307,7]
[392139791,1761204645455,-581.19344706,0.00030752,2]
[392139792,1761204645465,-5000.0,0.0003077,2]
[392139793,1761204645475,-823.0,0.00030774,2]
[392139794,1761204645484,-221.81118792,0.00030816,5]
[392139795,1761204645493,-1000.0,0.00030958,33]
[392139796,1761204645503,-1514.13210947,0.00031016,5]
[392139797,1761204645512,-2000.0,0.00031016,5]
[392139798,1761204645521,-204.21784002,0.00031036,2]
[392139799,1761204645530,-1620.65872946,0.00031068,2]
[392139800,1761204645541,-961.94914007,0.00031068,5]
[392139801,1761204645551,-1500.0,0.00031068,5]
[392139802,1761204645639,-1634.68312128,0.00031068,5]
[392139803,1761204645650,-1500.0,0.00031068,5]
[392139804,1761204645661,-1500.0,0.00031068,5]
[392139805,1761204645670,-1500.0,0.00031068,5]
[392139806,1761204645680,-1500.0,0.00031068,5]
[392139807,1761204645689,-1500.0,0.00031068,5]
[392139808,1761204645699,-1500.0,0.00031068,5]
[392139809,1761204645708,-1500.0,0.00031068,4]
[392139810,1761204645718,-150.0,0.00031073,5]
[392139811,1761204645727,-1533.0,0.00031198,3]
[392139812,1761204645736,-500.0,0.00031232,34]
[392139813,1761204645746,-2500.0,0.00031564,5]
[392139814,1761204645756,-684.17,0.000316,7]
[392139815,1761204645766,-1500.0,0.00031616,5]
[392139816,1761204645775,-456.6640712,0.00031616,5]
[392139817,1761204645785,-2000.0,0.00031616,5]
[392139818,1761204645794,-406.34751606,0.00031616,5]
[392139819,1761204647075,-421.75043402,0.00025573,2]
[392139820,1761204647086,-711.9198521,0.00031616,5]
[392139821,1761204647096,-1500.0,0.00031616,5]
[392139822,1761204647108,-2000.0,0.00031616,5]
[392139824,1761204647119,-1362.95444506,0.00031616,5]
[392139825,1761204647129,-506.95315498,0.00031616,4]
[392139826,1761204647139,-250.0,0.00031621,5]
[392139827,1761204647149,-1649.0,0.00031751,3]
[392139828,1761204647158,-1046.1482047,0.00031921,2]
[392139829,1761204647169,-1036.64,0.0003199,10]
[392139831,1761204647178,-2057.55,0.00032,2]
[392139832,1761204647188,-500000.0,0.00032,2]
[392139833,1761204647198,-1378.53728747,0.00032112,5]
[392139835,1761204647207,-439.35217615,0.00032142,2]
[392139836,1761204647217,-2003.10569259,0.00032164,5]
[392139837,1761204647227,-2500.0,0.00032164,5]
[392139839,1761204647237,-150.45141895,0.00032168,5]
[392139840,1761204647246,-983.0,0.00032515,2]
[392139842,1761204647256,-634.522,0.00032515,2]
[392139843,1761204647265,-2165.0,0.00032515,2]
[392139844,1761204647276,-411.0,0.00032515,2]
[392139846,1761204647285,-168.44,0.0003253,15]
[392139847,1761204647295,-168.44,0.0003263,15]
[392139848,1761204647305,-1021.40163185,0.00032712,5]
[392139850,1761204647315,-168.44,0.0003273,15]
[392139851,1761204647324,-168.44,0.0003283,15]
[392139852,1761204647333,-500.0,0.00032877,30]
[392139854,1761204647342,-720.0,0.00032898,30]
[392139855,1761204647353,-27641.75,0.000329,14]
[392139857,1761204647362,-168.44,0.0003293,60]
[392139858,1761204647372,-168.44,0.0003303,60]
[392139859,1761204647381,-150.9575594,0.00033053,7]
[392139861,1761204647390,-1859.81903058,0.0003309,2]
[392139862,1761204647400,-200.0,0.000331,7]
[392139863,1761204647409,-825.28380589,0.00033106,2]
[392139865,1761204647418,-168.44337113,0.0003313,60]
[392139866,1761204647428,-11480.14035817,0.00033212,2]
[392139868,1761204647437,-1152.0,0.00033368,2]
[392139869,1761204647446,-151.0,0.000334,20]
[392139870,1761204647455,-500.0,0.00033425,30]
[392139872,1761204647463,-272.878544,0.00033475,15]
[392139873,1761204647473,-224.217099,0.00033475,15]
[392139874,1761204647483,-162.90487684,0.00033699,10]
[392139876,1761204647493,-233.39181716,0.00033958,2]
[392139877,1761204647502,-500.0,0.00033973,30]
[392139879,1761204647512,-684.17,0.00034,7]
[392139880,1761204647521,-252.32560878,0.00034051,2]
[392139881,1761204647530,-485.33089226,0.00034142,120]
[392139883,1761204647540,-2905.96723528,0.00034259,2]
[392139884,1761204647549,-151.0,0.000343,17]
[392139886,1761204647559,-2057.55,0.000343,14]
[392139887,1761204647568,-604.0,0.0003436,2]
[392139888,1761204647578,-500.0,0.00034521,30]
[392139890,1761204647587,-200.98124,0.000346,120]
[392139891,1761204647596,-200.0,0.000346,120]
[392139892,1761204647606,-4283.0,0.00034679,7]
[392139894,1761204647615,-244588.31129244,0.00034688,2]
[392139895,1761204647625,-217.735837,0.00034688,30]
[392139897,1761204647634,-151.0,0.00034688,30]
[392139898,1761204647644,-217.735837,0.00034688,30]
[392139899,1761204647653,-217.735837,0.00034688,30]
[392139901,1761204647662,-217.735837,0.00034688,30]
[392139902,1761204647671,-156.185034,0.00034688,30]
[392139903,1761204647681,-151.0,0.00034688,30]
[392139905,1761204647690,-151.0,0.00034688,30]
[392139906,1761204647699,-151.0,0.00034688,30]
[392139908,1761204647710,-151.0,0.00034688,30]
[392139909,1761204647719,-151.0,0.00034688,30]
[392139910,1761204647729,-151.0,0.00034688,30]
[392139912,1761204647738,-151.0,0.00034688,30]
[392139913,1761204647748,-288.662392,0.00034688,30]
[392139914,1761204647757,-167.775372,0.00034688,30]
[392139915,1761204647766,-167.775372,0.00034688,30]
[392139917,1761204647775,-151.0,0.00034688,30]
[392139918,1761204647785,-167.775372,0.00034688,30]
[392139920,1761204647794,-167.775372,0.00034688,30]
[392139921,1761204647803,-151.0,0.00034688,30]
[392139922,1761204647817,-151.0,0.00034688,30]
[392139924,1761204647836,-176.373391,0.00034688,30]
[392139925,1761204647846,-28658.25767925,0.0003478,90]
[392139927,1761204647856,-159.66818622,0.00034937,2]
[392139928,1761204647866,-203.01329379,0.00035,2]
[392139930,1761204647875,-500000.0,0.00035,2]
[392139931,1761204647885,-500.0,0.00035068,30]
[392139932,1761204647895,-300.0,0.000352,2]
[392139934,1761204647904,-300.0,0.000352,2]
[392139935,1761204647916,-151.0,0.000352,20]
[392139937,1761204647926,-27641.75,0.000352,14]
[392139938,1761204647936,-278.0,0.00035248,2]
[392139939,1761204647945,-1000.0,0.000353,2]
[392139941,1761204647955,-151.0,0.0003536,30]
[392139942,1761204647965,-151.0,0.0003536,30]
[392139943,1761204647975,-183.687687,0.0003536,30]
[392139945,1761204647985,-151.0,0.0003536,30]
[392139946,1761204647995,-183.687687,0.0003536,30]
[392139948,1761204648005,-2423.120857,0.0003536,30]
[392139949,1761204648015,-151.0,0.0003536,30]
[392139950,1761204648026,-183.687687,0.0003536,30]
[392139952,1761204648036,-2423.120857,0.0003536,30]
[392139953,1761204648046,-183.687687,0.0003536,30]
[392139954,1761204648056,-2423.120857,0.0003536,30]
[392139955,1761204648066,-550.585983,0.0003536,30]
[392139956,1761204648077,-2423.120857,0.0003536,30]
[392139957,1761204648087,-271.80225,0.0003536,30]
[392139958,1761204648097,-550.585983,0.0003536,30]
[392139959,1761204648107,-271.80225,0.0003536,30]
[392139960,1761204648116,-550.585983,0.0003536,30]
[392139961,1761204648126,-271.80225,0.0003536,30]
[392139962,1761204648136,-151.0,0.0003536,30]
[392139963,1761204648147,-550.585983,0.0003536,30]
[392139964,1761204648157,-151.0,0.0003536,30]
[392139965,1761204648167,-271.80225,0.0003536,30]
[392139966,1761204648177,-151.0,0.0003536,30]
[392139967,1761204648187,-188.656329,0.0003536,30]
[392139968,1761204648199,-151.0,0.0003536,30]
[392139969,1761204648210,-151.0,0.0003536,30]
[392139970,1761204648219,-151.0,0.0003536,30]
[392139971,1761204648229,-151.0,0.0003536,30]
[392139972,1761204648239,-151.0,0.0003536,30]
[392139973,1761204648249,-150.0,0.00035374,2]
[392139974,1761204648258,-250.0,0.00035374,10]
[392139975,1761204648267,-250.0,0.00035374,10]
[392139976,1761204648276,-250.0,0.00035374,10]
[392139977,1761204648287,-250.0,0.00035374,10]
[392139978,1761204648296,-251.009692,0.00035374,10]
[392139979,1761204648306,-1441102.34853058,0.00035374,20]
[392140047,1761204750920,171.39,0.00035374,30]
[392140048,1761204865787,50000.0,0.00035374,30]
[392140049,1761204932139,230.42400023,0.00035348,30]
[392140050,1761205079709,171.2,0.00017982,5]
[392140051,1761205079959,171.2,0.00017982,5]
[392140052,1761205091080,32211.41026755,0.00024,30]
[392140053,1761205091107,100000.0,0.00024,30]
[392140054,1761205091134,48293.48535357,0.00024,30]
[392140055,1761205094029,160.73417,0.00027101,120]
[392140056,1761205156742,11846.58,0.0003,120]
[392140057,1761205163709,150.0,0.00020162,2]
[392140058,1761205294223,150.0,0.00020204,2]
[392140059,1761205294668,150.0,0.00021166,2]
[392140060,1761205295208,150.0,0.00022128,2]
[392140061,1761205295664,150.0,0.0002309,2]
[392140062,1761205296179,150.0,0.00024052,2]
[392140063,1761205364756,150.0,0.00020174,2]
[392140064,1761205365379,150.0,0.00021135,2]
[392140065,1761205365760,150.0,0.00022096,2]
[392140066,1761205431277,150.0,0.00020155,2]
[392140067,1761205464141,442.7532312,0.000241,2]
[392140068,1761205464958,553.40639341,0.00035373,30]
[392140071,1761205575040,349.805669,0.00013699,2]
[392140072,1761205575238,349.805669,0.00020187,2]
[392140082,1761205677483,276.58616224,0.00024085,2]
[392140098,1761205831741,-613.5,0.0002417,2]
[392140101,1761205831782,-26.83845644,0.0002417,2]
[392140102,1761205831791,-327.04526108,0.00024185,2]
[392140103,1761205831801,-106.61301846,0.000242,2]
[392140104,1761205831825,-348.1662047,0.000242,2]
[392140105,1761205831835,-1013.50845927,0.0002427,2]
[392140180,1761205850459,1387.02102249,0.0002411,3]
[392140181,1761205858801,3399.76973166,0.0002411,3]
[392140182,1761205964885,417.15472785,0.00024,3]
[392140183,1761205970742,417.15472785,0.00024,3]
[392140184,1761206033951,417.15472785,0.0002411,3]
[392140185,1761206034522,196.89094059,0.00023952,2]
[392140186,1761206089662,27488.23920851,0.0003549,120]
[392140187,1761206230201,12028.73354164,0.0002411,3]
[392140535,1761206439013,196.970591,0.00030137,120]
[392140921,1761206503722,1452.33171269,0.00023975,2]
[392140925,1761206517645,195.55631107,0.0002411,3]
[392140926,1761206533755,2059.24720535,0.0002411,3]
[392140935,1761206555356,63883.24162943,0.00024,2]
[392140936,1761206556249,160.0,0.000241,3]
[392140937,1761206557253,160.0,0.000241,3]
[392140938,1761206561575,993.49,0.0002399,10]
[392140939,1761206573986,827.91,0.0002398,10]
[392140940,1761206578362,1448.64,0.0002399,3]
[392140941,1761206586134,689.93,0.0002398,10]
[392140942,1761206588967,1385.86,0.0002399,3]
[392140943,1761206599547,2113.95,0.0002399,3]
[392140944,1761206607605,150.0,0.00020501,2]
[392140945,1761206608144,150.0,0.00021477,2]
[392140946,1761206608624,160.0,0.000241,3]
[392140947,1761206609539,773.64,0.0002398,10]
[392140948,1761206610179,1056.98,0.0002399,3]
[392140949,1761206620842,1107.94,0.0002399,3]
[392140950,1761206621745,644.7,0.0002398,10]
[392140952,1761206629592,19541.68265067,0.00024,7]